bitfinex/quotes_SOLUSD_20240808
["timestamp","ask_amount","ask_price","bid_price","bid_amount"]
[1723095535553,28.66,153.37,153.29,6.3403]
[1723095535943,35.1802,153.37,153.29,6.3403]
[1723095536346,20.0,153.36,153.29,6.3403]
[1723095536554,1.30216631,153.35,153.29,6.3403]
[1723095536732,20.0,153.36,153.29,6.3403]
[1723095537238,1.30216631,153.35,153.29,6.3403]
[1723095537637,29.96216631,153.35,153.29,6.3403]
[1723095537856,28.66,153.35,153.29,6.3403]
[1723095540265,20.0,153.36,153.29,6.3403]
[1723095541173,389.1,153.38,153.29,6.3403]
[1723095541471,389.1,153.38,153.3,0.17]
[1723095541654,28.66,153.41,153.31,15.4475]
[1723095542161,35.1786,153.41,153.31,15.4475]
[1723095542663,28.66,153.41,153.31,15.4475]
[1723095543339,20.0,153.4,153.31,15.4475]
[1723095543657,28.66,153.43,153.32,6.0715]
[1723095543844,28.66,153.45,153.35,6.0715]
[1723095544037,28.66,153.47,153.36,46.64370535]
[1723095544236,28.66,153.47,153.36,75.30370535]
[1723095544566,417.76,153.49,153.37,16.5141]
[1723095544866,417.76,153.49,153.38,1.30364766]
[1723095545160,424.2754,153.49,153.38,1.30364766]
[1723095545359,35.1761,153.47,153.37,16.5141]
[1723095545554,28.66,153.43,153.37,16.5141]
[1723095546153,35.1776,153.43,153.37,16.5141]
[1723095546459,28.66,153.43,153.37,16.5141]
[1723095546843,28.66,153.41,153.37,16.5141]
[1723095547048,20.0,153.42,153.37,16.5141]
[1723095547255,28.66,153.45,153.37,16.5141]
[1723095547560,20.0,153.44,153.37,16.5141]
[1723095548140,20.0,153.44,153.38,1.30384176]
[1723095548339,28.66,153.47,153.38,1.30384176]
[1723095549666,20.0,153.46,153.38,1.30384176]
[1723095549849,28.66,153.47,153.39,6.5582]
[1723095550557,389.1,153.48,153.4,1.30354648]
[1723095550869,389.1,153.48,153.39,6.5582]
[1723095551772,20.0,153.47,153.39,6.5582]
[1723095553157,29.96216631,153.46,153.39,6.5582]
[1723095553344,28.66,153.44,153.39,6.5582]
[1723095553752,28.66,153.44,153.37,16.5141]
[1723095553753,28.66,153.4,153.37,16.5141]
[1723095554788,1.30216631,153.39,153.37,16.5141]
[1723095554949,28.66,153.4,153.37,16.5141]
[1723095555646,28.66,153.4,153.35,6.5737]
[1723095555964,6.518,153.42,153.35,6.5737]
[1723095556151,20.17,153.41,153.35,6.5737]
[1723095556772,45.0,153.4,153.33,16.1653]
[1723095556971,6.5199,153.38,153.33,16.1653]
[1723095557277,26.6902,153.37,153.31,6.2165]
[1723095557578,20.17,153.37,153.31,6.2165]
[1723095557764,20.0,153.37,153.31,6.2165]
[1723095558171,20.17,153.39,153.31,6.2165]
[1723095558469,0.17,153.38,153.31,6.2165]
[1723095559765,20.0,153.39,153.31,6.2165]
[1723095559971,1.30216631,153.38,153.31,6.2165]
[1723095560275,20.0,153.39,153.31,6.2165]
[1723095560481,389.1,153.4,153.32,1.30363425]
[1723095560687,389.1,153.4,153.33,0.17]
[1723095560972,389.1,153.4,153.32,45.0]
[1723095561491,389.1,153.4,153.33,0.17]
[1723095561983,389.1,153.4,153.32,45.0]
[1723095562199,20.0,153.39,153.31,6.2165]
[1723095562483,1.30216631,153.38,153.31,6.2165]
[1723095562685,20.0,153.39,153.31,6.2165]
[1723095562889,389.1,153.38,153.31,6.2165]
[1723095563091,45.17,153.37,153.31,6.2165]
[1723095563274,20.0,153.36,153.31,6.2165]
[1723095563882,20.17,153.37,153.31,6.2165]
[1723095564204,20.0,153.37,153.31,6.2165]
[1723095564491,20.0,153.38,153.31,6.2165]
[1723095565482,389.1,153.4,153.31,7.52102806]
[1723095565693,389.1,153.4,153.31,6.2165]
[1723095565994,389.1,153.4,153.32,1.30429185]
[1723095567799,395.7566,153.49,153.33,16.5495]
[1723095568090,36.82,153.47,153.35,6.5438]
[1723095568290,6.5177,153.43,153.35,6.5438]
[1723095568673,7.81926631,153.45,153.35,6.5438]
[1723095568872,6.5172,153.44,153.35,6.5438]
[1723095569093,7.98986631,153.43,153.35,6.5438]
[1723095569393,20.0,153.42,153.35,6.5438]
[1723095569600,1.30216631,153.41,153.35,6.5438]
[1723095569771,0.17,153.42,153.35,6.5438]
[1723095570090,45.34,153.43,153.35,6.5438]
[1723095570294,21.30216631,153.42,153.35,6.5438]
[1723095570467,20.0,153.42,153.35,6.5438]
[1723095571573,389.1,153.45,153.35,6.5438]
[1723095571770,10.86570676,153.53,153.37,6.0783]
[1723095571972,10.86570676,153.53,153.4,6.0783]
[1723095572179,389.1,153.56,153.41,1.64322678]
[1723095572376,389.1,153.56,153.41,46.64322678]
[1723095572576,389.1,153.56,153.43,22.3664]
[1723095572785,0.8228107,153.58,153.44,46.64279101]
[1723095573385,0.8228107,153.58,153.45,42.9701]
[1723095573593,0.8228107,153.58,153.48,36.82]
[1723095573778,0.8228107,153.58,153.49,52.89049345]
[1723095573976,0.8228107,153.58,153.5,1.30223182]
[1723095574192,0.8228107,153.58,153.51,0.34]
[1723095574495,0.8228107,153.58,153.5,1.30234848]
[1723095574829,0.8228107,153.58,153.49,6.4183]
[1723095574984,0.8228107,153.58,153.49,6.2483]
[1723095575176,20.8228107,153.58,153.49,6.2483]
[1723095575374,38.12216631,153.57,153.46,16.2163]
[1723095575574,65.17,153.56,153.46,16.2163]
[1723095575798,6.5134,153.53,153.46,16.2163]
[1723095575998,45.17,153.52,153.46,16.2163]
[1723095576881,0.17,153.51,153.46,16.2163]
[1723095577703,0.34,153.52,153.46,16.2163]
[1723095577905,0.17,153.52,153.46,16.2163]
[1723095578102,1.47216631,153.52,153.46,16.2163]
[1723095578302,0.17,153.51,153.45,6.6313]
[1723095578483,45.17,153.51,153.45,6.6313]
[1723095579383,20.17,153.52,153.45,6.6313]
[1723095580407,46.30216631,153.51,153.41,21.7944]
[1723095580584,0.17,153.5,153.41,21.7944]
[1723095581590,409.1,153.52,153.42,1.30334465]
[1723095581900,409.1,153.52,153.41,21.9644]
[1723095582100,409.1,153.52,153.42,0.17]
[1723095582807,409.1,153.52,153.41,21.7944]
[1723095583000,45.0,153.51,153.41,21.7944]
[1723095583516,409.1,153.52,153.42,0.17]
[1723095583737,389.1,153.52,153.44,28.57]
[1723095583907,389.1,153.52,153.42,73.91]
[1723095584106,417.67,153.52,153.42,0.34]
[1723095584419,417.67,153.52,153.41,21.7944]
[1723095584420,28.57,153.5,153.41,21.7944]
[1723095585427,0.17,153.49,153.41,21.7944]
[1723095585735,28.57,153.48,153.41,21.7944]
[1723095586031,45.0,153.47,153.41,21.7944]
[1723095586817,0.17,153.46,153.41,21.7944]
[1723095587015,28.74,153.46,153.41,21.7944]
[1723095587231,46.30216631,153.45,153.41,21.7944]
[1723095587434,45.0,153.45,153.41,21.7944]
[1723095587936,28.57,153.48,153.41,21.7944]
[1723095588120,65.34,153.47,153.41,21.7944]
[1723095588325,65.0,153.47,153.41,21.7944]
[1723095590516,20.0,153.47,153.41,21.7944]
[1723095590713,20.0,153.49,153.41,21.7944]
[1723095591343,28.57,153.48,153.41,21.7944]
[1723095591936,0.17,153.47,153.41,21.7944]
[1723095592530,45.34,153.47,153.41,21.7944]
[1723095593539,28.57,153.46,153.41,21.7944]
[1723095593846,45.0,153.45,153.41,21.7944]
[1723095594046,0.34,153.47,153.41,21.7944]
[1723095594246,20.34,153.47,153.41,21.7944]
[1723095594455,45.0,153.46,153.41,21.7944]
[1723095596048,20.0,153.47,153.41,21.7944]
[1723095596247,389.1,153.52,153.41,21.7944]
[1723095596422,389.1,153.52,153.45,6.0057]
[1723095596622,389.1,153.52,153.46,1.30295004]
[1723095596842,286.51068861,153.61,153.47,16.158]
[1723095596843,28.57,153.59,153.47,16.158]
[1723095597027,424.1808,153.59,153.47,16.158]
[1723095597539,35.0809,153.59,153.47,16.158]
[1723095597737,36.38306631,153.59,153.47,16.158]
[1723095598226,20.8228107,153.58,153.47,17.46083479]
[1723095598431,0.8228107,153.58,153.48,28.57]
[1723095598627,0.8228107,153.58,153.5,34.6729]
[1723095598936,0.8228107,153.58,153.52,28.57]
[1723095599135,0.8228107,153.58,153.52,29.87239907]
[1723095599322,0.8228107,153.58,153.53,15.0814]
[1723095602767,0.8228107,153.58,153.49,15.8638]
[1723095602768,1.64216631,153.57,153.49,15.8638]
[1723095603126,36.71,153.56,153.46,6.2446]
[1723095603459,65.0,153.55,153.46,6.2446]
[1723095603756,45.0,153.54,153.46,6.2446]
[1723095603954,45.17,153.54,153.46,6.2446]
[1723095604457,0.17,153.53,153.46,6.2446]
[1723095604671,20.17,153.53,153.46,6.2446]
[1723095604839,20.17,153.53,153.44,16.4398]
[1723095604840,435.57216631,153.52,153.44,16.4398]
[1723095605045,20.17,153.51,153.44,16.4398]
[1723095605353,45.17,153.5,153.44,16.4398]
[1723095605656,20.17,153.49,153.44,16.4398]
[1723095605836,20.0,153.49,153.44,16.4398]
[1723095606032,45.17,153.48,153.44,16.4398]
[1723095606856,1.30216631,153.47,153.42,6.2924]
[1723095607060,0.17,153.46,153.4,16.266]
[1723095607264,45.34,153.46,153.4,16.266]
[1723095607559,20.0,153.45,153.38,6.4668]
[1723095607759,45.34,153.44,153.36,15.2535]
[1723095608057,26.5177,153.43,153.36,15.2535]
[1723095608264,46.47216631,153.42,153.36,15.2535]
[1723095609144,6.6884,153.41,153.34,6.2062]
[1723095609354,46.47216631,153.4,153.34,6.2062]
[1723095609536,1.30216631,153.39,153.34,6.2062]
[1723095609740,1.47216631,153.38,153.31,16.0218]
[1723095609952,0.17,153.37,153.31,16.0218]
[1723095610261,21.47216631,153.37,153.31,16.0218]
[1723095610855,20.17,153.37,153.31,16.0218]
[1723095611842,21.47216631,153.37,153.31,16.0218]
[1723095612233,45.0,153.36,153.31,16.0218]
[1723095612440,1.30216631,153.35,153.31,16.0218]
[1723095612765,45.0,153.36,153.31,16.0218]
[1723095614546,20.0,153.37,153.31,16.0218]
[1723095614749,20.0,153.38,153.31,16.0218]
[1723095615546,389.1,153.39,153.31,17.32615986]
[1723095616264,389.1,153.39,153.31,16.0218]
[1723095619756,395.6167,153.46,153.31,17.32597191]
[1723095619960,45.34,153.45,153.32,45.34]
[1723095620142,0.34,153.45,153.33,1.30385227]
[1723095620339,0.34,153.45,153.34,0.17]
[1723095620571,0.34,153.45,153.34,1.47385931]
[1723095620762,389.1,153.47,153.35,0.17]
[1723095620944,22.5104,153.48,153.35,0.17]
[1723095621150,6.516,153.47,153.36,6.2806]
[1723095621553,25.2057518,153.48,153.36,6.2806]
[1723095621772,6.5159,153.47,153.36,6.2806]
[1723095622150,19.99221811,153.48,153.36,6.2806]
[1723095622379,6.5168,153.45,153.36,6.2806]
[1723095622582,28.15846631,153.47,153.36,6.2806]
[1723095622762,51.5164,153.46,153.36,6.2806]
[1723095622960,20.34,153.45,153.36,6.2806]
[1723095623161,45.0,153.44,153.36,6.2806]
[1723095623551,389.1,153.5,153.37,17.45558381]
[1723095623961,389.1,153.5,153.38,0.17]
[1723095624160,6.515,153.5,153.38,1.64353601]
[1723095624363,6.515,153.5,153.38,0.34]
[1723095624578,17.33696534,153.49,153.38,0.34]
[1723095624777,20.0,153.48,153.38,0.34]
[1723095624958,20.0,153.48,153.38,1.6434829]
[1723095625275,389.1,153.53,153.38,46.6434829]
[1723095625477,6.5134,153.53,153.39,6.5111]
[1723095625680,6.5134,153.53,153.4,45.34]
[1723095625883,6.5142,153.51,153.4,0.17]
[1723095626180,6.5138,153.52,153.39,6.5111]
[1723095626364,6.5138,153.52,153.4,45.34]
[1723095626565,6.5138,153.52,153.4,0.34]
[1723095626767,20.0,153.51,153.4,1.30328669]
[1723095627088,20.0,153.51,153.39,6.6811]
[1723095627264,45.34,153.5,153.39,6.6811]
[1723095627456,45.34,153.5,153.39,7.9845561]
[1723095627662,0.17,153.5,153.39,6.6811]
[1723095627862,0.17,153.5,153.39,6.5111]
[1723095627863,26.6847,153.5,153.39,6.5111]
[1723095628061,0.17,153.49,153.39,6.5111]
[1723095628287,45.17,153.49,153.39,6.5111]
[1723095628858,1.47216631,153.48,153.39,6.5111]
[1723095629155,0.17,153.47,153.39,6.5111]
[1723095629662,45.17,153.47,153.39,6.5111]
[1723095629881,20.17,153.46,153.39,6.5111]
[1723095630882,20.0,153.46,153.39,6.5111]
[1723095631055,389.1,153.54,153.4,1.30313552]
[1723095631258,389.1,153.54,153.42,15.2381]
[1723095631455,260.1117,153.57,153.44,6.0928]
[1723095631659,400.98423756,153.58,153.45,1.64294992]
[1723095631868,400.98423756,153.58,153.46,16.3326]
[1723095632085,400.98423756,153.58,153.47,1.30287119]
[1723095632286,11.88423756,153.58,153.49,6.584]
[1723095632459,0.8228107,153.58,153.51,16.3326]
[1723095632658,0.8228107,153.58,153.52,1.30242064]
[1723095632959,0.8228107,153.58,153.51,16.3326]
[1723095633177,0.8228107,153.58,153.51,17.63497301]
[1723095633578,0.8228107,153.58,153.51,16.3326]
[1723095634781,0.8228107,153.58,153.51,17.63527693]
[1723095634991,0.8228107,153.58,153.51,16.3326]
[1723095636694,7.3341107,153.58,153.51,16.3326]
[1723095636879,45.0,153.57,153.51,16.3326]
[1723095637192,20.0,153.56,153.51,16.3326]
[1723095637563,45.34,153.55,153.49,6.584]
[1723095637764,51.8525,153.55,153.49,6.584]
[1723095637969,20.0,153.54,153.47,16.0836]
[1723095638178,1.30216631,153.53,153.47,16.0836]
[1723095638563,20.0,153.54,153.47,16.0836]
[1723095638982,21.30216631,153.54,153.47,16.0836]
[1723095639671,27.81526631,153.54,153.44,6.0247]
[1723095639994,45.34,153.53,153.44,6.0247]
[1723095640196,27.81616631,153.52,153.44,6.0247]
[1723095640493,6.5147,153.5,153.42,16.033]
[1723095640695,6.2785,153.48,153.37,15.0114]
[1723095640880,409.44,153.47,153.37,15.0114]
[1723095641196,20.0,153.46,153.37,15.0114]
[1723095641402,389.1,153.47,153.37,15.0114]
[1723095641684,389.1,153.47,153.38,6.5986]
[1723095642188,389.1,153.47,153.39,0.34]
[1723095642392,389.1,153.47,153.38,6.5986]
[1723095642689,389.1,153.47,153.39,0.17]
[1723095643402,389.1,153.47,153.39,0.34]
[1723095644607,389.1,153.47,153.39,45.34]
[1723095644902,39.37465862,153.56,153.39,45.34]
[1723095645068,410.35910201,153.55,153.39,45.34]
[1723095645676,6.5135,153.53,153.39,45.34]
[1723095645992,21.30216631,153.52,153.39,45.34]
[1723095646297,46.30216631,153.51,153.39,45.34]
[1723095646684,20.0,153.5,153.39,45.34]
[1723095648398,389.0569357,153.55,153.4,16.5104]
[1723095648582,389.0569357,153.55,153.41,45.34]
[1723095648783,395.5694357,153.55,153.41,45.34]
[1723095649390,389.0569357,153.55,153.41,45.34]
[1723095649568,46.64216631,153.54,153.41,45.34]
[1723095649771,20.0,153.53,153.41,0.34]
[1723095650003,20.0,153.53,153.41,45.34]
[1723095650174,1.30216631,153.52,153.41,0.34]
[1723095650384,1.47216631,153.51,153.4,16.5104]
[1723095650585,21.64216631,153.51,153.4,16.5104]
[1723095650781,45.0,153.5,153.4,16.5104]
[1723095651007,21.64216631,153.49,153.4,16.5104]
[1723095651174,20.0,153.49,153.4,16.5104]
[1723095652995,45.34,153.48,153.4,16.5104]
[1723095653502,26.5159,153.47,153.4,16.5104]
[1723095653704,45.34,153.46,153.4,16.5104]
[1723095653879,20.0,153.45,153.4,16.5104]
[1723095654201,45.0,153.44,153.33,15.6732]
[1723095654404,6.6876,153.43,153.34,12.93879272]
[1723095654711,66.30216631,153.42,153.34,6.1228]
[1723095654887,6.5192,153.4,153.34,6.1228]
[1723095655091,7.82146631,153.39,153.33,15.6732]
[1723095655293,71.6898,153.38,153.3,6.1228]
[1723095655608,0.17,153.37,153.3,6.1228]
[1723095655813,1.30216631,153.36,153.3,6.1228]
[1723095655982,1.30216631,153.35,153.3,6.1228]
[1723095656803,0.34,153.37,153.3,6.1228]
[1723095658115,1.30216631,153.36,153.3,6.1228]
[1723095658285,0.34,153.37,153.29,15.6732]
[1723095658286,1.64216631,153.35,153.29,15.6732]
[1723095658489,0.17,153.34,153.29,15.6732]
[1723095658878,0.17,153.34,153.26,6.3196]
[1723095659709,1.30216631,153.34,153.26,6.3196]
[1723095659913,65.34,153.35,153.26,6.3196]
[1723095660284,0.17,153.36,153.27,1.3047675]
[1723095660513,45.34,153.37,153.26,6.3196]
[1723095660894,16.94003776,153.4,153.26,6.3196]
[1723095661104,7.82156631,153.39,153.26,6.3196]
[1723095661613,1.30216631,153.39,153.26,6.3196]
[1723095661780,21.30216631,153.39,153.27,0.17]
[1723095661980,6.5177,153.43,153.27,1.30458547]
[1723095662179,6.074,153.45,153.27,1.30458547]
[1723095662180,6.074,153.45,153.28,0.34]
[1723095662387,6.074,153.45,153.29,1.30418045]
[1723095662586,12.5908,153.45,153.3,1.64419947]
[1723095662788,1.30216631,153.44,153.31,15.0315]
[1723095663092,6.5189,153.4,153.31,15.0315]
[1723095663403,1.30216631,153.39,153.31,15.0315]
[1723095663796,6.5185,153.41,153.31,15.0315]
[1723095664114,6.5198,153.38,153.31,15.0315]
[1723095664417,46.64216631,153.37,153.31,15.0315]
[1723095664713,20.0,153.36,153.31,15.0315]
[1723095665304,20.0,153.39,153.31,15.0315]
[1723095665507,45.34,153.38,153.31,15.0315]
[1723095665811,20.0,153.37,153.31,15.0315]
[1723095667007,0.17,153.36,153.31,15.0315]
[1723095667293,51.8607,153.36,153.27,15.4581]
[1723095667498,21.30216631,153.35,153.27,15.4581]
[1723095667703,6.5218,153.33,153.27,15.4581]
[1723095667986,45.34,153.34,153.27,15.4581]
[1723095667987,1.47216631,153.32,153.27,15.4581]
[1723095668186,45.0,153.34,153.27,15.4581]
[1723095668399,20.0,153.35,153.27,15.4581]
[1723095668808,45.17,153.34,153.27,15.4581]
[1723095669014,1.47216631,153.33,153.27,15.4581]
[1723095669191,20.17,153.33,153.27,15.4581]
[1723095669387,20.0,153.33,153.27,15.4581]
[1723095669587,45.17,153.32,153.27,15.4581]
[1723095670123,1.30216631,153.31,153.27,15.4581]
[1723095670295,51.6924,153.32,153.27,15.4581]
[1723095670496,0.17,153.31,153.26,6.3196]
[1723095670793,26.693,153.31,153.23,15.7532]
[1723095670987,45.17,153.3,153.23,15.7532]
[1723095671217,0.17,153.29,153.23,15.7532]
[1723095671395,45.17,153.3,153.23,15.7532]
[1723095672011,45.0,153.3,153.23,17.05770058]
[1723095672321,409.1,153.31,153.23,17.05770058]
[1723095673291,45.17,153.3,153.23,15.7532]
[1723095673492,46.47216631,153.3,153.23,15.7532]
[1723095673793,409.1,153.31,153.23,15.7532]
[1723095673993,45.0,153.3,153.23,15.7532]
[1723095674198,409.1,153.31,153.23,15.7532]
[1723095674399,45.17,153.3,153.23,15.7532]
[1723095674814,409.1,153.31,153.23,15.7532]
[1723095675220,389.1,153.31,153.24,1.3048835]
[1723095675889,389.1,153.31,153.23,15.7532]
[1723095676216,6.5194,153.39,153.25,6.0879]
[1723095676397,408.7,153.4,153.25,6.0879]
[1723095676605,6.5197,153.38,153.25,6.0879]
[1723095676819,6.5197,153.38,153.26,1.30459308]
[1723095676998,6.5202,153.37,153.25,6.0879]
[1723095677320,0.17,153.36,153.25,6.0879]
[1723095677491,395.6191,153.4,153.27,16.2632]
[1723095677694,389.1,153.4,153.3,16.2632]
[1723095677997,389.1,153.4,153.31,1.30420284]
[1723095678325,389.1,153.4,153.3,16.2632]
[1723095678889,389.1,153.4,153.3,17.56740613]
[1723095679520,389.1,153.4,153.3,16.2632]
[1723095679727,20.17,153.39,153.3,16.2632]
[1723095679898,0.17,153.41,153.3,16.2632]
[1723095679899,253.6,153.45,153.33,6.4783]
[1723095680100,389.1,153.46,153.33,7.78223257]
[1723095680322,389.1,153.46,153.33,6.4783]
[1723095680813,389.1,153.46,153.34,1.47394108]
[1723095681124,6.5163,153.47,153.35,0.17]
[1723095681293,20.0,153.45,153.35,0.17]
[1723095681496,389.1,153.5,153.37,6.602]
[1723095681793,389.1,153.5,153.38,0.34]
[1723095682523,395.6147,153.5,153.38,0.34]
[1723095682726,7.81726631,153.49,153.37,6.602]
[1723095682899,20.0,153.48,153.37,6.602]
[1723095683102,26.5151,153.49,153.38,1.30372455]
[1723095683598,389.1,153.5,153.38,1.30372455]
[1723095683810,45.17,153.49,153.38,1.30372455]
[1723095684213,45.17,153.49,153.37,6.602]
[1723095684428,45.17,153.49,153.37,7.90559819]
[1723095684943,389.1,153.5,153.38,0.34]
[1723095685131,20.0,153.49,153.38,1.64352798]
[1723095685430,20.0,153.49,153.39,16.6346]
[1723095685608,21.30216631,153.51,153.4,0.34]
[1723095686208,20.0,153.5,153.4,0.34]
[1723095686411,1.30216631,153.51,153.4,0.34]
[1723095686608,46.30216631,153.51,153.4,0.34]
[1723095686906,20.34,153.5,153.39,16.6346]
[1723095687116,45.0,153.49,153.39,16.6346]
[1723095687314,20.0,153.48,153.39,16.6346]
[1723095687525,20.0,153.5,153.39,16.6346]
[1723095687827,45.34,153.49,153.39,16.6346]
[1723095688124,20.0,153.48,153.39,16.6346]
[1723095688724,1.30216631,153.51,153.39,16.6346]
[1723095688909,0.34,153.5,153.39,16.6346]
[1723095689226,1.30216631,153.49,153.39,16.6346]
[1723095689430,45.34,153.5,153.39,16.6346]
[1723095689633,20.0,153.49,153.39,16.6346]
[1723095689827,45.34,153.48,153.39,16.6346]
[1723095690239,45.17,153.48,153.39,16.6346]
[1723095690407,20.0,153.49,153.4,1.30354386]
[1723095690830,20.0,153.51,153.4,1.30354386]
[1723095691134,45.0,153.5,153.4,1.30354386]
[1723095691307,20.0,153.49,153.4,1.30354386]
[1723095691625,20.0,153.49,153.39,16.6346]
[1723095691804,45.17,153.48,153.39,16.6346]
[1723095692809,20.17,153.47,153.39,16.6346]
[1723095693128,51.6864,153.46,153.39,16.6346]
[1723095693308,20.17,153.45,153.39,16.6346]
[1723095693506,45.0,153.44,153.39,16.6346]
[1723095693718,51.5173,153.44,153.39,16.6346]
[1723095693927,20.34,153.43,153.37,6.602]
[1723095694239,45.0,153.42,153.37,6.602]
[1723095694806,0.17,153.41,153.35,15.4804]
[1723095695008,0.34,153.41,153.35,15.4804]
[1723095695438,0.17,153.41,153.35,15.4804]
[1723095695621,45.0,153.42,153.35,15.4804]
[1723095696031,0.17,153.41,153.35,15.4804]
[1723095696251,0.34,153.41,153.35,15.4804]
[1723095696758,20.34,153.41,153.35,15.4804]
[1723095696928,45.0,153.4,153.35,15.4804]
[1723095698731,1.30216631,153.39,153.35,15.4804]
[1723095699047,20.17,153.41,153.35,15.4804]
[1723095699251,20.0,153.4,153.35,15.4804]
[1723095699563,20.0,153.43,153.35,15.4804]
[1723095699874,45.0,153.42,153.35,15.4804]
[1723095700029,389.1,153.46,153.35,15.4804]
[1723095700235,0.17,153.45,153.36,1.30393798]
[1723095700830,389.1,153.46,153.36,1.30393798]
[1723095701534,65.17,153.45,153.36,1.30393798]
[1723095702238,0.17,153.44,153.36,1.30393798]
[1723095702464,65.0,153.45,153.36,1.30393798]
[1723095702647,0.17,153.44,153.35,15.4804]
[1723095703048,1.47216631,153.44,153.35,15.4804]
[1723095703241,0.17,153.43,153.35,15.4804]
[1723095703442,65.17,153.43,153.35,15.4804]
[1723095703643,0.17,153.43,153.35,15.4804]
[1723095704560,0.34,153.44,153.35,15.4804]
[1723095705463,20.0,153.45,153.36,1.30404974]
[1723095705769,20.0,153.46,153.36,1.30404974]
[1723095705933,417.71,153.49,153.37,34.6487]
[1723095706132,417.71,153.49,153.38,15.2328]
[1723095706359,389.1,153.49,153.39,28.61]
[1723095706576,389.1,153.49,153.4,1.30290499]
[1723095707060,395.6133,153.54,153.42,21.9138]
[1723095707274,1.30216631,153.53,153.43,28.61]
[1723095707941,28.61,153.52,153.42,21.9138]
[1723095708143,6.5154,153.49,153.42,21.9138]
[1723095708342,0.17,153.48,153.42,21.9138]
[1723095708552,65.17,153.48,153.42,21.9138]
[1723095709354,65.0,153.48,153.42,21.9138]
[1723095709554,20.0,153.48,153.42,21.9138]
[1723095709749,20.0,153.49,153.42,21.9138]
[1723095709953,6.5134,153.53,153.42,21.9138]
[1723095710153,7.81606631,153.52,153.42,21.9138]
[1723095710469,1.30216631,153.51,153.42,21.9138]
[1723095711167,21.30216631,153.51,153.42,21.9138]
[1723095711335,20.0,153.5,153.42,21.9138]
[1723095711541,1.30216631,153.49,153.42,21.9138]
[1723095711745,46.30216631,153.49,153.42,21.9138]
[1723095711939,20.34,153.48,153.42,21.9138]
[1723095712164,45.0,153.47,153.42,21.9138]
[1723095713043,21.64216631,153.46,153.35,22.3551]
[1723095713249,6.5176,153.43,153.35,22.3551]
[1723095713457,73.16026631,153.42,153.35,22.3551]
[1723095713655,6.5184,153.41,153.35,22.3551]
[1723095713960,66.64216631,153.4,153.35,22.3551]
[1723095714165,1.30216631,153.39,153.35,22.3551]
[1723095714363,0.34,153.38,153.35,22.3551]
[1723095714555,0.17,153.38,153.35,22.3551]
[1723095714756,45.34,153.38,153.35,22.3551]
[1723095715274,20.0,153.39,153.35,22.3551]
[1723095715573,20.0,153.42,153.35,22.3551]
[1723095715747,45.0,153.41,153.35,22.3551]
[1723095715950,20.0,153.4,153.35,22.3551]
[1723095716768,20.17,153.41,153.35,22.3551]
[1723095718177,6.5159,153.47,153.36,1.30397612]
[1723095718345,428.76686758,153.54,153.36,1.30397612]
[1723095718346,6.5155,153.48,153.36,1.30397612]
[1723095718856,6.5155,153.48,153.35,22.3551]